lending/lending_fUSD_20250508
["ID","MTS","AMOUNT","RATE_DAILY","PERIOD"]
[360285567,1746706238147,-12500.0,0.00019929,2]
[360285568,1746706238158,-12500.0,0.00019937,2]
[360285569,1746706238168,-12500.0,0.00019946,2]
[360285570,1746706238178,-12500.0,0.00019955,2]
[360285571,1746706238189,-12500.0,0.00019964,2]
[360285572,1746706238199,-12500.0,0.00019973,2]
[360285573,1746706238209,-500.0,0.00019973,2]
[360285574,1746706238220,-500.0,0.00019973,2]
[360285575,1746706238230,-500.0,0.00019973,2]
[360285576,1746706238240,-501.55992043,0.00019973,2]
[360285577,1746706238250,-500.0,0.00019973,2]
[360285578,1746706238261,-475.51975775,0.00019973,2]
[360285579,1746706238272,-501.06876795,0.00019973,2]
[360285580,1746706238282,-500.0,0.00019973,2]
[360285581,1746706238291,-500.0,0.00019973,2]
[360285582,1746706238461,-500.0,0.00019973,2]
[360285583,1746706238471,-500.0,0.00019973,2]
[360285584,1746706238481,-500.0,0.00019973,2]
[360285585,1746706238491,-500.0,0.00019973,2]
[360285586,1746706238500,-500.61772494,0.00019973,2]
[360285587,1746706238510,-500.0,0.00019973,2]
[360285588,1746706238519,-500.0,0.00019973,2]
[360285589,1746706238529,-500.0,0.00019973,2]
[360285590,1746706238538,-154.04078585,0.00019973,2]
[360285591,1746706238548,-500.0,0.00019973,2]
[360285592,1746706238557,-501.08442967,0.00019973,2]
[360285593,1746706238567,-302.14693747,0.00019973,2]
[360285594,1746706238577,-500.78256206,0.00019973,2]
[360285595,1746706238586,-500.89897208,0.00019973,2]
[360285596,1746706238596,-500.0,0.00019973,2]
[360285597,1746706238607,-220.354,0.00019973,2]
[360285598,1746706238616,-1769.5,0.00019981,2]
[360285599,1746706238626,-12500.0,0.00019981,2]
[360285600,1746706238636,-10854.4261687,0.00019986,2]
[360285601,1746706238645,-2541.001171,0.00019986,2]
[360285602,1746706238655,-21874.52915594,0.00019986,2]
[360285603,1746706238668,-18994.16840535,0.00019986,2]
[360285604,1746706238680,-256.6463619,0.00019986,2]
[360285605,1746706238738,-801.98475755,0.00019986,2]
[360285606,1746706238750,-577.81859894,0.00019986,2]
[360285607,1746706238762,-436.62281044,0.00019986,2]
[360285608,1746706238773,-259.95474827,0.00019986,2]
[360285611,1746706239809,-577.93412886,0.00019986,2]
[360285612,1746706239821,-518.10500903,0.00019986,2]
[360285613,1746706239832,-2471.06638386,0.00019986,2]
[360285614,1746706239844,-9699.58758107,0.00019986,2]
[360285615,1746706239855,-1732.37768899,0.00019986,2]
[360285616,1746706239867,-227.5543698,0.00019986,2]
[360285617,1746706239877,-176.33862058,0.0001999,2]
[360285618,1746706239887,-5072.10700962,0.0001999,2]
[360285619,1746706239898,-1382.29321223,0.0001999,2]
[360285620,1746706240001,-2145.0,0.0001999,2]
[360285621,1746706240012,-263.17861209,0.0001999,2]
[360285622,1746706240024,-622.27029995,0.0001999,2]
[360285623,1746706240052,-252.20100001,0.0001999,2]
[360285624,1746706240064,-1403.07466105,0.0001999,2]
[360285625,1746706240075,-683.83681065,0.0001999,2]
[360285626,1746706240117,-425.35226459,0.0001999,2]
[360285627,1746706240128,-250.68612981,0.0001999,2]
[360285628,1746706240138,-312.92490851,0.00019999,2]
[360285629,1746706240160,-187.07509149,0.00019999,2]
[360285630,1746706240169,-74.38686629,0.00019999,2]
[360285631,1746706240182,-425.61313371,0.00019999,2]
[360285632,1746706240192,-387.43036669,0.00019999,2]
[360285633,1746706240204,-112.56963331,0.00019999,2]
[360285634,1746706240214,-500.0,0.00019999,2]
[360285635,1746706240225,-500.0,0.00019999,2]
[360285636,1746706240236,-500.0,0.00019999,2]
[360285637,1746706240246,-500.0,0.00019999,2]
[360285638,1746706240256,-500.0,0.00019999,2]
[360285639,1746706240267,-620.0,0.00019999,2]
[360285640,1746706240276,-500.0,0.00019999,2]
[360285641,1746706240285,-500.0,0.00019999,2]
[360285642,1746706240295,-500.0,0.00019999,2]
[360285643,1746706240304,-55.98036669,0.00019999,2]
[360285644,1746706240316,-444.01963331,0.00019999,2]
[360285645,1746706240325,-333.65674282,0.00019999,2]
[360285646,1746706240340,-166.34325718,0.00019999,2]
[360285647,1746706240350,-456.46188888,0.00019999,2]
[360285648,1746706240362,-43.53811112,0.00019999,2]
[360285649,1746706240372,-482.74374452,0.00019999,2]
[360285650,1746706240383,-17.25625548,0.00019999,2]
[360285652,1746706240393,-500.0,0.00019999,2]
[360285653,1746706240402,-500.0,0.00019999,2]
[360285654,1746706240413,-500.0,0.00019999,2]
[360285655,1746706240423,-500.0,0.00019999,2]
[360285656,1746706240432,-245.33736198,0.00019999,2]
[360285657,1746706240502,-55.45263802,0.00019999,2]
[360285658,1746706240512,-500.0,0.00019999,2]
[360285659,1746706240526,-326.64274795,0.00019999,2]
[360285660,1746706240538,-173.35725205,0.00019999,2]
[360285661,1746706240548,-449.15619723,0.00019999,2]
[360285665,1746706242768,-50.84380277,0.00019999,2]
[360285666,1746706242778,-500.0,0.00019999,2]
[360285667,1746706242788,-500.0,0.00019999,2]
[360285668,1746706242798,-500.0,0.00019999,2]
[360285669,1746706242808,-500.0,0.00019999,2]
[360285670,1746706242818,-500.0,0.00019999,2]
[360285671,1746706242827,-341.59759316,0.00019999,2]
[360285672,1746706242839,-158.40240684,0.00019999,2]
[360285673,1746706242849,-448.13887342,0.00019999,2]
[360285674,1746706242861,-51.86112658,0.00019999,2]
[360285675,1746706242871,-500.0,0.00019999,2]
[360285676,1746706242881,-139.90750698,0.00019999,2]
[360285677,1746706242893,-360.09249302,0.00019999,2]
[360285678,1746706242902,-500.0,0.00019999,2]
[360285679,1746706242912,-500.0,0.00019999,2]
[360285680,1746706242921,-500.0,0.00019999,2]
[360285681,1746706242930,-500.0,0.00019999,2]
[360285682,1746706242939,-500.0,0.00019999,2]
[360285683,1746706242948,-500.0,0.00019999,2]
[360285685,1746706242958,-500.0,0.00019999,2]
[360285687,1746706242967,-500.0,0.00019999,2]
[360285689,1746706242978,-500.0,0.00019999,2]
[360285691,1746706242987,-500.0,0.00019999,2]
[360285694,1746706242996,-500.0,0.00019999,2]
[360285696,1746706243006,-500.0,0.00019999,2]
[360285697,1746706243015,-500.0,0.00019999,2]
[360285699,1746706243024,-500.0,0.00019999,2]
[360285701,1746706243034,-500.0,0.00019999,2]
[360285703,1746706243043,-500.0,0.00019999,2]
[360285704,1746706243053,-500.0,0.00019999,2]
[360285705,1746706243062,-500.0,0.00019999,2]
[360285706,1746706243071,-500.0,0.00019999,2]
[360285707,1746706243081,-500.0,0.00019999,2]
[360285708,1746706243090,-500.0,0.00019999,2]
[360285709,1746706243100,-500.0,0.00019999,2]
[360285710,1746706243110,-500.0,0.00019999,2]
[360285711,1746706243119,-500.0,0.00019999,2]
[360285712,1746706243128,-500.0,0.00019999,2]
[360285713,1746706243138,-264.66296891,0.00019999,2]
[360285714,1746706243153,-500.0,0.00019999,2]
[360285715,1746706243162,-500.0,0.00019999,2]
[360285716,1746706243171,-500.0,0.00019999,2]
[360285717,1746706243182,-500.0,0.00019999,2]
[360285719,1746706243191,-500.0,0.00019999,2]
[360285720,1746706243201,-500.0,0.00019999,2]
[360285721,1746706243211,-500.0,0.00019999,2]
[360285722,1746706243221,-500.0,0.00019999,2]
[360285723,1746706243231,-500.0,0.00019999,2]
[360285724,1746706243240,-500.0,0.00019999,2]
[360285725,1746706243249,-500.0,0.00019999,2]
[360285726,1746706243258,-500.0,0.00019999,2]
[360285727,1746706243267,-500.0,0.00019999,2]
[360285728,1746706243277,-500.0,0.00019999,2]
[360285729,1746706243286,-500.0,0.00019999,2]
[360285730,1746706243296,-500.0,0.00019999,2]
[360285731,1746706243306,-500.0,0.00019999,2]
[360285732,1746706243316,-500.0,0.00019999,2]
[360285733,1746706243325,-500.0,0.00019999,2]
[360285734,1746706243335,-500.0,0.00019999,2]
[360285735,1746706243344,-500.0,0.00019999,2]
[360285736,1746706243354,-500.0,0.00019999,2]
[360285737,1746706243363,-500.0,0.00019999,2]
[360285738,1746706243372,-368.06661384,0.00019999,2]
[360285739,1746706243381,-500.0,0.00019999,2]
[360285740,1746706243391,-500.0,0.00019999,2]
[360285741,1746706243400,-500.0,0.00019999,2]
[360285742,1746706243409,-300.0,0.00019999,2]
[360285743,1746706243419,-198.23,0.00019999,2]
[360285744,1746706243428,-9658.17004254,0.00019999,2]
[360285745,1746706243440,-1027.41528178,0.00019999,2]
[360285746,1746706243452,-541.81057808,0.00019999,2]
[360285747,1746706243463,-1009.73463931,0.00019999,2]
[360285748,1746706243572,-262.86945829,0.00019999,2]
[360285749,1746706243582,-148.86284288,0.00019999,2]
[360285750,1746706243594,-1038.87478883,0.00019999,2]
[360285751,1746706243606,-684.2648947,0.00019999,2]
[360285752,1746706243618,-361.23699221,0.00019999,2]
[360285753,1746706243630,-594.31747972,0.00019999,2]
[360285754,1746706243683,-741.02899628,0.00019999,2]
[360285755,1746706243695,-368.11282658,0.00019999,2]
[360285757,1746706243708,-587.94412976,0.00019999,2]
[360285759,1746706243721,-702.48775898,0.00019999,2]
[360285760,1746706243733,-572.86929006,0.00019999,2]
[360285761,1746706243744,-219.8745317,0.00019999,2]
[360285762,1746706243754,-262.0209458,0.00019999,2]
[360285763,1746706243763,-127.93547937,0.00019999,2]
[360285764,1746706243796,-121.22078979,0.00019999,2]
[360285765,1746706243806,-231.43621393,0.00019999,2]
[360285766,1746706243816,-203.20803689,0.00019999,2]
[360285767,1746706243828,-47.31336997,0.00019999,2]
[360285768,1746706243839,-165.37989174,0.00019999,2]
[360285769,1746706243849,-608.0,0.0002,2]
[360285770,1746706243860,-532.02702347,0.0002,2]
[360285771,1746706243869,-105701.71790709,0.0002,2]
[360285772,1746706243912,-645.97252021,0.0002,2]
[360285773,1746706243924,-1198.03591024,0.0002,2]
[360285774,1746706243935,-994.88,0.0002,2]
[360285775,1746706243947,-1561.87742494,0.0002,2]
[360285776,1746706243960,-1861.93568125,0.0002,2]
[360285777,1746706243971,-580.93511996,0.0002,2]
[360285778,1746706244028,-326.24341807,0.0002,2]
[360285798,1746706245474,-662.28783368,0.0002,2]
[360285799,1746706245487,-3118.47166735,0.0002,2]
[360285801,1746706245499,-1221.48973865,0.0002,2]
[360285804,1746706245527,-446.1675443,0.0002,2]
[360285805,1746706245539,-298.532859,0.0002,2]
[360285807,1746706245567,-715.30866792,0.0002,2]
[360285808,1746706245579,-327.90318949,0.0002,2]
[360285809,1746706245591,-2589.31839737,0.0002,2]
[360285810,1746706245621,-1099.5778759,0.0002,2]
[360285811,1746706245664,-553.21195369,0.0002,2]
[360285812,1746706247020,-572.2077438,0.0002,2]
[360285813,1746706247042,-716.82277971,0.0002,2]
[360285814,1746706247053,-1167.2985317,0.0002,2]
[360285815,1746706247064,-1463.45620925,0.0002,2]
[360285816,1746706247221,-407.69148303,0.0002,2]
[360285817,1746706247232,-473.85295577,0.0002,2]
[360285818,1746706247243,-2320.49100453,0.0002,2]
[360285819,1746706247254,-540.84788497,0.0002,2]
[360285820,1746706247280,-811.37251513,0.0002,2]
[360285831,1746706429799,3000.0,0.00030137,120]
[360285833,1746706577044,150.0,0.0003,30]
[360285834,1746706584903,150.0,0.0003,30]
[360285835,1746706585592,150.0,0.0003,30]
[360285836,1746706691085,150.0,0.0003,30]
[360285837,1746706783443,2019.343,0.0003,30]
[360285838,1746706804106,150.0,0.0003,30]
[360285839,1746706807042,272.52630066,0.0003,30]
[360285840,1746706808160,500.0,0.0003,30]
[360285842,1746706867638,12799.48815948,0.0003,30]
[360285843,1746706991663,310.0,0.00017106,2]
[360285844,1746706991687,240.11,0.00017106,2]
[360285845,1746706991863,550.11,0.0001937,2]
[360285846,1746707000409,19998.129,0.0003,30]
[360285847,1746707017730,250.0,0.00017,2]
[360285848,1746707018801,300.0,0.00019,2]
[360285849,1746707032291,181.0,0.0003013,120]
[360285850,1746707064083,1000.0,0.0003,30]
[360285851,1746707068538,910.79845397,0.0003,120]
[360285852,1746707111086,150.0,0.0003,30]
[360285853,1746707114574,250.0,0.00019042,2]
[360285854,1746707167290,159.69,0.00019051,2]
[360285855,1746707199094,1000.0,0.00019083,2]
[360285856,1746707230013,278.5955,0.000153,2]
[360285857,1746707266456,-277.87310389,0.00019519,2]
[360285858,1746707272376,-164.06,0.00019519,2]
[360285859,1746707278363,5524.66017603,0.0001,2]
[360285860,1746707283938,-245.95696167,0.00019518,2]
[360285861,1746707284896,275.0,0.00019,2]
[360285862,1746707293788,175.0,0.00019,2]
[360285863,1746707313400,996.83432397,0.00018,2]
[360285864,1746707313423,152.65075392,0.00018,2]
[360285865,1746707316895,693.78006556,0.00017085,2]
[360285866,1746707317808,4275.86706331,0.000149,2]
[360285867,1746707319993,2647.36329271,0.0001,2]
[360285868,1746707322704,2114.71,0.000151,2]
[360285869,1746707327185,115.6288245,0.00010136,2]
[360285870,1746707327208,1250.97293798,0.00010136,2]
[360285871,1746707327765,8749.02706202,0.00013368,2]
[360285872,1746707327787,5249.02769218,0.00013368,2]
[360285873,1746707347421,150.0,0.0003,30]
[360285874,1746707374468,457.97,0.00018968,2]
[360285875,1746707412577,150.0,0.0003,30]
[360285876,1746707416368,500.0,0.0003,30]
[360285887,1746707431828,-300.0,0.00019518,2]
[360285888,1746707431839,-47.0526767,0.00019518,2]
[360285889,1746707436740,-1152.9473233,0.00019518,2]
[360285890,1746707436752,-300.0,0.00019518,2]
[360285891,1746707436763,-200.0,0.00019519,2]
[360285892,1746707436773,-2778.86768725,0.00019519,2]
[360285936,1746707437222,-21147.74450001,0.00019519,2]
[360286037,1746707437874,-1774.95704,0.00019519,2]
[360286045,1746707437940,-1546.69999996,0.00019519,2]
[360286047,1746707437952,-1835.47038154,0.00019519,2]
[360286053,1746707437998,-23026.64150084,0.00019519,2]
[360286055,1746707438008,-200.0,0.00019574,2]
[360286057,1746707438019,-206.06,0.00019629,2]
[360286059,1746707438029,-4428.20293568,0.000197,2]
[360286061,1746707438040,-525.06,0.000197,2]
[360286063,1746707438055,-500.0,0.00019773,2]
[360286065,1746707438066,-500.0,0.00019773,2]
[360286067,1746707438076,-500.0,0.00019773,2]
[360286069,1746707438087,-500.0,0.00019773,2]
[360286072,1746707438097,-500.0,0.00019773,2]
[360286074,1746707438108,-500.0,0.00019773,2]
[360286076,1746707438118,-207.4,0.00019787,2]
[360286079,1746707438129,-250.0,0.00019798,2]
[360286083,1746707438139,-182.69332904,0.00019799,2]
[360286086,1746707438150,-4258.70467641,0.00019799,2]
[360286090,1746707438166,-5348.1779212,0.00019799,2]
[360286252,1746707439774,-28078.85797482,0.00019799,2]
[360286269,1746707440145,-1000.0,0.00019799,2]
[360286272,1746707440160,-791.726144,0.00019799,2]
[360286277,1746707440199,-6587.29253575,0.00019799,2]
[360286279,1746707440214,-299.899998,0.00019799,2]
[360286281,1746707440227,-274.8600008,0.00019799,2]
[360286292,1746707440324,-1027.8865036,0.00019799,2]
[360286297,1746707440360,-1469.52906931,0.00019799,2]
[360286311,1746707440498,-0.01808448,0.00019799,2]
[360286395,1746707442983,-2451.938759,0.00019799,2]
[360286396,1746707442995,-5533.2,0.00019799,2]
[360286397,1746707443035,-1209.68440101,0.00019799,2]
[360286398,1746707443047,-8806.89775709,0.00019799,2]
[360286399,1746707443060,-5099.00014207,0.00019799,2]
[360286407,1746707443240,-25856.45424803,0.00019799,2]
[360286409,1746707443250,-10300.0,0.000198,2]
[360286410,1746707443261,-593.16391772,0.00019886,2]
[360286411,1746707443272,-187.4495427,0.00019886,2]
[360286412,1746707443283,-1620.7313,0.00019886,2]
[360286413,1746707443292,-364.1757,0.00019886,2]
[360286414,1746707443302,-5421.19338068,0.00019899,2]
[360286415,1746707443314,-1720.481,0.000199,2]
[360286416,1746707443323,-14181.1157,0.000199,2]
[360286417,1746707443333,-9999.99,0.000199,2]
[360286418,1746707443343,-1130.43,0.000199,2]
[360286419,1746707443353,-772.8988,0.000199,2]
[360286420,1746707443364,-171.33993634,0.000199,2]
[360286421,1746707443375,-174.45221257,0.000199,2]
[360286422,1746707443387,-2744.1786,0.000199,2]
[360286423,1746707443397,-197.4932076,0.000199,2]
[360286424,1746707443407,-1447.3784454,0.000199,2]
[360286425,1746707443417,-500.0,0.00019973,2]
[360286426,1746707443427,-500.0,0.00019973,2]
[360286427,1746707443438,-502.03777307,0.00019973,2]
[360286428,1746707443448,-499.96845597,0.00019973,2]
[360286429,1746707443458,-503.99665673,0.00019973,2]
[360286430,1746707443469,-500.0,0.00019973,2]
[360286431,1746707443480,-500.0,0.00019973,2]
[360286432,1746707443491,-151.0,0.00019974,2]
[360286433,1746707443503,-155.0,0.00019974,2]
[360286434,1746707443514,-668.65185757,0.00019974,2]
[360286435,1746707443524,-1730.606,0.00019981,2]
[360286436,1746707443536,-2451.5009393,0.00019986,2]
[360286437,1746707443546,-74725.0408333,0.00019986,2]
[360286438,1746707443557,-3677.9589888,0.00019986,2]
[360286439,1746707443567,-68777.9624999,0.00019986,2]
[360286440,1746707443577,-3619.5466768,0.00019986,2]
[360286441,1746707443587,-40206.0845411,0.00019986,2]
[360286442,1746707443597,-692.2114917,0.00019986,2]
[360286443,1746707443607,-7913.4710056,0.00019986,2]
[360286444,1746707443620,-703.6268771,0.0001999,2]
[360286445,1746707443631,-300.0,0.00019999,2]
[360286446,1746707443644,-500.0,0.00019999,2]
[360286447,1746707443655,-666.0,0.00019999,2]
[360286448,1746707443667,-300.0,0.00019999,2]
[360286449,1746707443680,-500.0,0.00019999,2]
[360286450,1746707443690,-652.64111379,0.00019999,2]
[360286451,1746707443699,-500.0,0.00019999,2]
[360286452,1746707443709,-9708.89818609,0.00019999,2]
[360286453,1746707443720,-199.66,0.00019999,2]
[360286454,1746707443730,-7694.48426457,0.00019999,2]
[360286455,1746707443739,-11060.54294979,0.00019999,2]
[360286456,1746707443748,-325.37509763,0.00019999,2]
[360286457,1746707443757,-153.91217219,0.00019999,2]
[360286458,1746707443768,-183.41466206,0.00019999,2]
[360286459,1746707443778,-174.40938842,0.00019999,2]
[360286460,1746707443789,-162.00534976,0.00019999,2]
[360286461,1746707443798,-175.3649848,0.00019999,2]
[360286462,1746707443811,-205.67699358,0.00019999,2]
[360286463,1746707443820,-410.50226738,0.00019999,2]
[360286464,1746707443831,-500.0,0.00019999,2]
[360286465,1746707443842,-526.58701162,0.00019999,2]
[360286466,1746707443854,-500.0,0.00019999,2]
[360286467,1746707443863,-500.0,0.00019999,2]
[360286468,1746707443874,-500.0,0.00019999,2]
[360286469,1746707443886,-500.0,0.00019999,2]
[360286470,1746707443896,-500.0,0.00019999,2]
[360286471,1746707443906,-500.0,0.00019999,2]
[360286472,1746707443917,-500.0,0.00019999,2]
[360286473,1746707443927,-500.0,0.00019999,2]
[360286474,1746707443938,-500.0,0.00019999,2]
[360286475,1746707443949,-500.0,0.00019999,2]
[360286476,1746707443960,-500.0,0.00019999,2]
[360286477,1746707443971,-500.0,0.00019999,2]
[360286478,1746707443980,-500.0,0.00019999,2]
[360286479,1746707443990,-500.0,0.00019999,2]
[360286480,1746707444000,-500.0,0.00019999,2]
[360286481,1746707444009,-500.0,0.00019999,2]
[360286482,1746707444019,-500.0,0.00019999,2]
[360286483,1746707444030,-500.0,0.00019999,2]
[360286484,1746707444039,-500.0,0.00019999,2]
[360286485,1746707444050,-500.0,0.00019999,2]
[360286486,1746707444061,-500.0,0.00019999,2]
[360286487,1746707444071,-500.0,0.00019999,2]
[360286488,1746707444081,-500.0,0.00019999,2]
[360286489,1746707444090,-500.0,0.00019999,2]
[360286490,1746707444100,-500.0,0.00019999,2]
[360286491,1746707444110,-500.0,0.00019999,2]
[360286492,1746707444121,-500.0,0.00019999,2]
[360286493,1746707444131,-500.0,0.00019999,2]
[360286494,1746707444140,-500.0,0.00019999,2]
[360286495,1746707444150,-500.0,0.00019999,2]
[360286496,1746707444160,-500.0,0.00019999,2]
[360286497,1746707444170,-360.21644839,0.00019999,2]
[360286498,1746707444180,-500.0,0.00019999,2]
[360286499,1746707444190,-500.0,0.00019999,2]
[360286500,1746707444200,-500.0,0.00019999,2]
[360286501,1746707444210,-500.0,0.00019999,2]
[360286502,1746707444219,-500.0,0.00019999,2]
[360286503,1746707444229,-500.0,0.00019999,2]
[360286504,1746707444239,-500.0,0.00019999,2]
[360286505,1746707444248,-500.0,0.00019999,2]
[360286506,1746707444258,-500.0,0.00019999,2]
[360286507,1746707444268,-500.0,0.00019999,2]
[360286508,1746707444278,-500.0,0.00019999,2]
[360286509,1746707444287,-500.0,0.00019999,2]
[360286510,1746707444296,-282.75191657,0.00019999,2]
[360286511,1746707444306,-500.0,0.00019999,2]
[360286512,1746707444315,-500.0,0.00019999,2]
[360286513,1746707444325,-500.0,0.00019999,2]
[360286514,1746707444335,-500.0,0.00019999,2]
[360286515,1746707444344,-500.0,0.00019999,2]
[360286516,1746707444354,-500.0,0.00019999,2]
[360286517,1746707444364,-500.0,0.00019999,2]
[360286518,1746707444374,-500.0,0.00019999,2]
[360286519,1746707444384,-500.0,0.00019999,2]
[360286520,1746707444394,-500.0,0.00019999,2]
[360286521,1746707444403,-500.0,0.00019999,2]
[360286522,1746707444414,-500.0,0.00019999,2]
[360286523,1746707444423,-500.0,0.00019999,2]
[360286524,1746707444433,-500.0,0.00019999,2]
[360286525,1746707444443,-500.0,0.00019999,2]
[360286526,1746707444452,-500.0,0.00019999,2]
[360286527,1746707444462,-500.0,0.00019999,2]
[360286528,1746707444472,-500.0,0.00019999,2]
[360286529,1746707444481,-500.0,0.00019999,2]
[360286530,1746707444491,-500.0,0.00019999,2]
[360286531,1746707444503,-500.0,0.00019999,2]
[360286532,1746707444515,-500.0,0.00019999,2]
[360286533,1746707444526,-500.0,0.00019999,2]
[360286534,1746707444538,-500.0,0.00019999,2]
[360286535,1746707444549,-500.0,0.00019999,2]
[360286536,1746707444561,-500.0,0.00019999,2]
[360286537,1746707444571,-500.0,0.00019999,2]
[360286538,1746707444581,-500.0,0.00019999,2]
[360286539,1746707444592,-500.0,0.00019999,2]
[360286540,1746707444601,-500.0,0.00019999,2]
[360286541,1746707444611,-500.0,0.00019999,2]
[360286542,1746707444620,-500.0,0.00019999,2]
[360286543,1746707444630,-500.0,0.00019999,2]
[360286544,1746707444642,-500.0,0.00019999,2]
[360286545,1746707444651,-578.27519166,0.00019999,2]
[360286546,1746707444661,-500.0,0.00019999,2]
[360286547,1746707444670,-500.0,0.00019999,2]
[360286548,1746707444680,-500.0,0.00019999,2]
[360286549,1746707444689,-500.0,0.00019999,2]
[360286550,1746707444699,-500.0,0.00019999,2]
[360286551,1746707444708,-500.0,0.00019999,2]
[360286552,1746707444719,-500.0,0.00019999,2]
[360286553,1746707444729,-407.82751916,0.00019999,2]
[360286554,1746707444738,-266.01351173,0.00019999,2]
[360286555,1746707444748,-658.0,0.0002,2]
[360286556,1746707444757,-316160.19715729,0.0002,2]
[360286557,1746707444767,-560994.22950564,0.0002,2]
[360286575,1746707446526,-5676.54905495,0.0002,2]
[360286576,1746707446540,-991.145,0.0002,2]
[360286577,1746707446554,-1110.54999616,0.0002,2]
[360286578,1746707446568,-497.755,0.0002,2]
[360286579,1746707446619,-855.767,0.0002,2]
[360286580,1746707446773,-1791.27614102,0.0002,2]
[360286581,1746707446785,-663.834381,0.0002,2]
[360286582,1746707446846,-431.11603284,0.0002,2]
[360286584,1746707451973,4293.00230782,0.00018975,2]
[360286585,1746707451995,10000.0,0.00018975,2]
[360286586,1746707452017,9606.99769218,0.00018975,2]
[360286588,1746707599136,155.87,0.00018975,2]
[360286599,1746707647126,241.0,0.0003,30]
[360286600,1746707682096,262.63,0.00030136,120]
[360286601,1746707846303,3000.0,0.0003,30]
[360286603,1746707942316,237.13230782,0.00019176,2]
[360286604,1746707942340,4175.75769218,0.00019176,2]
[360286605,1746708007657,227.160964,7.945e-05,2]
[360286606,1746708060521,5597.08134382,0.00019057,2]
[360286607,1746708060543,4402.91865618,0.00019057,2]
[360286612,1746708073552,200.0,0.0003,30]
[360286613,1746708076437,150.0,0.0003,30]
[360286614,1746708083443,226.3,0.00019011,2]
[360286615,1746708103751,4147.0,0.00030137,120]
[360286616,1746708123860,158.32,0.00018992,2]
[360286617,1746708140637,740.24,0.0001707,2]
[360286618,1746708140856,740.24,0.00019334,2]
[360286619,1746708143105,450.0,0.00029589,30]
[360286620,1746708199815,250.0,0.00018982,2]
[360286621,1746708313084,1000.0,0.00019024,2]
[360286631,1746708314545,330.38040268,0.00019005,2]
[360286633,1746708314566,2481.98134382,0.00019005,2]
[360286635,1746708314590,5482.9182535,0.00019005,2]
[360286761,1746708352851,3476.45,0.00019,2]
[360286762,1746708421081,1040.6317465,0.00019479,2]
[360286763,1746708421103,67.2188375,0.00019479,2]
[360286764,1746708483468,2436.11,0.0001902,2]
[360286765,1746708546363,330.7689,0.0003013,120]
[360286766,1746708571749,162.06,0.00018977,2]
[360286767,1746708572615,162.06,0.00025302,120]
[360286768,1746708572837,162.06,0.00028465,120]
[360286769,1746708594581,453.17,0.00018977,2]
[360286773,1746708631781,-200.0,0.00019577,2]
[360286774,1746708631791,-200.0,0.00019583,2]
[360286775,1746708631801,-250.0,0.00019589,2]
[360286776,1746708631811,-151.0,0.00019602,2]
[360286777,1746708631821,-200.0,0.00019625,2]
[360286778,1746708631830,-165.02,0.00019651,2]
[360286779,1746708631840,-2776.79761852,0.00019787,2]
[360286780,1746708631849,-472.98310381,0.00019852,2]
[360286781,1746708631860,-1409.08273785,0.00019865,2]
[360286782,1746708631869,-472.98310381,0.0001987,2]
[360286783,1746708631879,-1200.0,0.00019872,2]
[360286784,1746708631889,-300.0,0.00019872,2]